Workbook

Sheet паспорт
A1: ПАТ "УКРТРАНСГАЗ" | G1: ПАСПОРТ ФІЗИКО-ХІМІЧНИХ ПОКАЗНИКІВ ПРИРОДНОГО ГАЗУ № 602
A2: Філія "УМГ "ХАРКІВТРАНСГАЗ" | G2: переданого п/м КС Борова Первомайського ЛВУМГ філії "УМГ "Харківтрансгаз" та прийнятого ПАТ "Луганськгаз"
A3: п/м КС Борова Первомайське ЛВУМГ | G3: Маршрут № 602
A4: Вимірювальна хіміко-аналітична лабораторія
A5: Свідоцтво про атестацію № 100-037/2013 дійсне до 24.10.2017 р. | K5: по газопроводу "НОВОПСКОВ-ШЕБЕЛИНКА" | V5: за період з | X5: 2017-05-01 | Z5: по | AA5: 2017-05-31
A7: Число місяця | B7: Компонентний склад, % мол. | N7: Фізико-хімічні показники газу обчислені на основі компонентного складу, 101,325 кПа | X7: Температура точки роси за вологою (Р = 3.92 МПа), °С | Y7: Температура точки роси за вуглеводнями, °С | Z7: Вміст сірководню, г/м3 | AA7: Вміст меркаптанової сірки, г/м3 | AB7: Вміст механічних домішок, г/м3
N8: Густина абсолютна, кг/м3,при 20 ºС, | O8: Температура вимірювання/згоряння при 20/25°С
B9: метан, С₁ | C9: етан, С₂ | D9: пропан, С₃ | E9: ізо-бутан, і-С₄ | F9: н-бутан, н-С₄ | G9: нео-пентан, нео-С₅ | H9: ізо-пентан, і-С₅ | I9: н-пентан, н-С₅ | J9: гексани та вищі, С₆₊ | K9: кисень, О₂ | L9: азот, N₂ | M9: діоксид вуглецю, CО₂ | O9: Теплота згоряння нижча | R9: Теплота згоряння вища | U9: Число Воббе вище
O10: ккал/м³ | P10: МДж/м³ | Q10: кВт⋅год/м³ | R10: ккал/м³ | S10: МДж/м³ | T10: кВт⋅год/м³ | U10: ккал/м³ | V10: МДж/м³ | W10: кВт⋅год/м³
A11: 1 | O11: =P11*238.8459 -> 8349.789934 | P11: 34.9589 | Q11: =P11/3.6 -> 9.710805556 | R11: =S11*238.8459 -> 9245.199328 | S11: 38.7078 | T11: =S11/3.6 -> 10.75216667 | AC11: =SUM(B11:M11)+$K$42+$N$42 -> 0
A12: 2 | O12: =P12*238.8459 -> 8349.789934 | P12: 34.9589 | Q12: 9.710805556 | R12: 9245.199328 | S12: 38.7078 | T12: 10.75216667 | AC12: 0
A13: 3 | O13: 8349.789934 | P13: 34.9589 | Q13: 9.710805556 | R13: 9245.199328 | S13: 38.7078 | T13: 10.75216667 | AC13: 0 | AD13: =IF(AC13=100,"ОК"," ") -> 
A14: 4 | O14: 8349.789934 | P14: 34.9589 | Q14: =P14/3.6 -> 9.710805556 | R14: =S14*238.8459 -> 9245.199328 | S14: 38.7078 | T14: 10.75216667 | AC14: 0 | AD14: =IF(AC14=100,"ОК"," ") -> 
A15: 5 | B15: 92.1601 | C15: 4.0556 | D15: 1.0824 | E15: 0.1507 | F15: 0.2386 | G15: 0.0134 | H15: 0.0685 | I15: 0.0533 | J15: 0.1128 | K15: 0.0104 | L15: 1.7223 | M15: 0.3318 | N15: 0.7306 | O15: 8346.899898 | P15: 34.9468 | Q15: 9.707444444 | R15: 9242.739215 | S15: 38.6975 | T15: 10.74930556 | U15: =V15*238.8459 -> 11867.67954 | V15: 49.6876 | W15: =V15/3.6 -> 13.80211111 | AC15: 99.9999
A16: 6 | O16: 8346.899898 | P16: 34.9468 | Q16: =P16/3.6 -> 9.707444444 | R16: =S16*238.8459 -> 9242.739215 | S16: 38.6975 | T16: 10.74930556 | AC16: 0
A17: 7 | O17: 8346.899898 | P17: 34.9468 | Q17: 9.707444444 | R17: 9242.739215 | S17: 38.6975 | T17: 10.74930556 | AC17: 0
A18: 8 | O18: =P18*238.8459 -> 8346.899898 | P18: 34.9468 | Q18: 9.707444444 | R18: 9242.739215 | S18: 38.6975 | T18: =S18/3.6 -> 10.74930556 | AC18: 0
A19: 9 | O19: 8346.899898 | P19: 34.9468 | Q19: 9.707444444 | R19: 9242.739215 | S19: 38.6975 | T19: 10.74930556 | AC19: 0
A20: 10 | O20: 8346.899898 | P20: 34.9468 | Q20: 9.707444444 | R20: 9242.739215 | S20: 38.6975 | T20: 10.74930556 | AC20: 0
A21: 11 | O21: 8346.899898 | P21: 34.9468 | Q21: 9.707444444 | R21: 9242.739215 | S21: 38.6975 | T21: 10.74930556 | AC21: 0
A22: 12 | B22: 92.3684 | C22: 3.9394 | D22: 1.0871 | E22: 0.1524 | F22: 0.2405 | G22: 0.0122 | H22: 0.0706 | I22: 0.055 | J22: 0.1101 | K22: 0.0098 | L22: 1.6354 | M22: 0.3191 | N22: 0.7294 | O22: 8349.383895 | P22: 34.9572 | Q22: =P22/3.6 -> 9.710333333 | R22: =S22*238.8459 -> 9244.936598 | S22: 38.7067 | T22: 10.75186111 | U22: =V22*238.8459 -> 11880.02787 | V22: 49.7393 | W22: =V22/3.6 -> 13.81647222 | AC22: 100 | AD22: ОК
A23: 13 | B23: 92.2028 | C23: 3.9685 | D23: 1.1082 | E23: 0.1583 | F23: 0.2514 | G23: 0.0129 | H23: 0.0722 | I23: 0.0559 | J23: 0.1086 | K23: 0.0081 | L23: 1.721 | M23: 0.332 | N23: 0.7307 | O23: =P23*238.8459 -> 8349.527203 | P23: 34.9578 | Q23: =P23/3.6 -> 9.7105 | R23: =S23*238.8459 -> 9244.79329 | S23: 38.7061 | T23: =S23/3.6 -> 10.75169444 | U23: 11869.16039 | V23: 49.6938 | W23: 13.80383333 | AC23: 99.9999
A24: 14 | O24: 8349.527203 | P24: 34.9578 | Q24: =P24/3.6 -> 9.7105 | R24: =S24*238.8459 -> 9244.79329 | S24: 38.7061 | T24: 10.75169444 | AC24: 0
A25: 15 | B25: 92.0999 | C25: 4.0121 | D25: 1.0983 | E25: 0.1576 | F25: 0.2522 | G25: 0.0122 | H25: 0.0747 | I25: 0.056 | J25: 0.1111 | K25: 0.0101 | L25: 1.7315 | M25: 0.3843 | N25: 0.7316 | O25: =P25*238.8459 -> 8347.114859 | P25: 34.9477 | Q25: 9.707694444 | R25: 9241.998793 | S25: 38.6944 | T25: =S25/3.6 -> 10.74844444 | U25: 11858.00628 | V25: 49.6471 | W25: 13.79086111 | AC25: 100 | AD25: ОК
A26: 16 | O26: 8347.114859 | P26: 34.9477 | Q26: =P26/3.6 -> 9.707694444 | R26: =S26*238.8459 -> 9241.998793 | S26: 38.6944 | T26: 10.74844444 | AC26: 0
A27: 17 | B27: 92.1384 | C27: 4.0896 | D27: 1.0901 | E27: 0.1467 | F27: 0.2435 | G27: 0.0125 | H27: 0.0722 | I27: 0.0543 | J27: 0.1059 | K27: 0.0086 | L27: 1.6911 | M27: 0.347 | N27: 0.7308 | O27: 8351.103586 | P27: 34.9644 | Q27: 9.712333333 | R27: 9246.51298 | S27: 38.7133 | T27: 10.75369444 | U27: 11870.88008 | V27: 49.701 | W27: 13.80583333 | AC27: 99.9999
A28: 18 | O28: 8351.103586 | P28: 34.9644 | Q28: =P28/3.6 -> 9.712333333 | R28: =S28*238.8459 -> 9246.51298 | S28: 38.7133 | T28: 10.75369444 | AC28: 0
A29: 19 | B29: 92.3221 | C29: 3.9701 | D29: 1.0652 | E29: 0.148 | F29: 0.2387 | G29: 0.0119 | H29: 0.0743 | I29: 0.0545 | J29: 0.1198 | K29: 0.009 | L29: 1.6285 | M29: 0.3581 | N29: 0.73 | O29: 8348.667358 | P29: 34.9542 | Q29: =P29/3.6 -> 9.7095 | R29: =S29*238.8459 -> 9244.052868 | S29: 38.703 | T29: 10.75083333 | U29: 11874.15226 | V29: 49.7147 | W29: 13.80963889 | AC29: 100.0002
A30: 20 | O30: 8348.667358 | P30: 34.9542 | Q30: =P30/3.6 -> 9.7095 | R30: =S30*238.8459 -> 9244.052868 | S30: 38.703 | T30: 10.75083333 | AC30: 0 | AD30: =IF(AC30=100,"ОК"," ") -> 
A31: 21 | O31: 8348.667358 | P31: 34.9542 | Q31: 9.7095 | R31: 9244.052868 | S31: 38.703 | T31: 10.75083333 | AC31: 0
A32: 22 | B32: 92.3125 | C32: 3.9644 | D32: 1.0799 | E32: 0.1478 | F32: 0.2354 | G32: 0.0105 | H32: 0.0731 | I32: 0.0532 | J32: 0.109 | K32: 0.0095 | L32: 1.6657 | M32: 0.339 | N32: 0.7296 | O32: 8343.723248 | P32: 34.9335 | Q32: =P32/3.6 -> 9.70375 | R32: =S32*238.8459 -> 9238.726604 | S32: 38.6807 | T32: 10.74463889 | U32: =V32*238.8459 -> 11870.23519 | V32: 49.6983 | W32: =V32/3.6 -> 13.80508333 | AC32: 100 | AD32: ОК
A33: 23 | O33: 8343.723248 | P33: 34.9335 | Q33: =P33/3.6 -> 9.70375 | R33: =S33*238.8459 -> 9238.726604 | S33: 38.6807 | T33: 10.74463889 | AC33: 0 | AD33: =IF(AC33=100,"ОК"," ") -> 
A34: 24 | B34: 92.0681 | C34: 4.066 | D34: 1.106 | E34: 0.1524 | F34: 0.2421 | G34: 0.0119 | H34: 0.0759 | I34: 0.057 | J34: 0.128 | K34: 0.0083 | L34: 1.7011 | M34: 0.3831 | N34: 0.7321 | O34: 8357.00308 | P34: 34.9891 | Q34: 9.719194444 | R34: 9252.699089 | S34: 38.7392 | T34: 10.76088889 | U34: =V34*238.8459 -> 11867.63177 | V34: 49.6874 | W34: 13.80205556 | AC34: 99.9999
A35: 25 | O35: =P35*238.8459 -> 8357.00308 | P35: 34.9891 | Q35: =P35/3.6 -> 9.719194444 | R35: =S35*238.8459 -> 9252.699089 | S35: 38.7392 | T35: =S35/3.6 -> 10.76088889 | AC35: 0
A36: 26 | B36: 92.0995 | C36: 4.0626 | D36: 1.1101 | E36: 0.1527 | F36: 0.2424 | G36: 0.0128 | H36: 0.0721 | I36: 0.0536 | J36: 0.1157 | K36: 0.0075 | L36: 1.705 | M36: 0.366 | N36: 0.7215 | O36: 8353.133776 | P36: 34.9729 | Q36: =P36/3.6 -> 9.714694444 | R36: =S36*238.8459 -> 9248.614824 | S36: 38.7221 | T36: 10.75613889 | U36: 11867.70343 | V36: 49.6877 | W36: =V36/3.6 -> 13.80213889 | AC36: 100 | AD36: ОК
A37: 27 | O37: 8353.133776 | P37: 34.9729 | Q37: =P37/3.6 -> 9.714694444 | R37: =S37*238.8459 -> 9248.614824 | S37: 38.7221 | T37: 10.75613889 | AC37: 0
A38: 28 | O38: 8353.133776 | P38: 34.9729 | Q38: 9.714694444 | R38: 9248.614824 | S38: 38.7221 | T38: 10.75613889 | AC38: 0
A39: 29 | B39: 92.1003 | C39: 4.0515 | D39: 1.1314 | E39: 0.153 | F39: 0.2412 | G39: 0.0125 | H39: 0.0708 | I39: 0.0539 | J39: 0.1104 | K39: 0.0081 | L39: 1.7205 | M39: 0.3466 | N39: 0.7313 | O39: 8353.20543 | P39: 34.9732 | Q39: =P39/3.6 -> 9.714777778 | R39: =S39*238.8459 -> 9248.645874 | S39: 38.72223 | T39: 10.756175 | U39: =V39*238.8459 -> 11869.16039 | V39: 49.6938 | W39: =V39/3.6 -> 13.80383333 | AC39: 100.0002
A40: 30 | O40: 8353.20543 | P40: 34.9732 | Q40: =P40/3.6 -> 9.714777778 | R40: =S40*238.8459 -> 9248.645874 | S40: 38.72223 | T40: 10.756175 | AC40: 0
A41: 31 | B41: 92.3164 | C41: 3.9486 | D41: 1.0901 | E41: 0.1421 | F41: 0.2363 | G41: 0.0128 | H41: 0.0729 | I41: 0.0541 | J41: 0.1184 | K41: 0.0069 | L41: 1.6577 | M41: 0.3436 | N41: 0.7299 | O41: =P41*238.8459 -> 8347.234282 | P41: 34.9482 | Q41: =P41/3.6 -> 9.707833333 | R41: =S41*238.8459 -> 9242.500369 | S41: 38.6965 | T41: =S41/3.6 -> 10.74902778 | U41: 11872.79084 | V41: 49.709 | W41: =V41/3.6 -> 13.80805556 | AC41: 99.9999
A42: Рівень одоризації відповідає чинним нормативним документам | O42: 8349.130562 | P42: 34.95613934 | Q42: 9.710038706 | R42: 9244.580971 | S42: 38.70521106 | T42: 10.75144752
H43: Середньозважене значення теплоти згоряння:
B46: Головний інженер Первомайського ЛВУМГ | O46: Журавель І.В. | V46: 02.06.2017 р.
D47: Керівник підрозділу підприємства, якому підпорядкована лабораторія | O47: прізвище | R47: підпис | V47: дата
B48: Начальник лабораторії ПМ КС Борова Первомайського ЛВ УМГ | O48: Карапута В.М. | V48: =V46 -> 02.06.2017 р.
D49: Лабораторія, де здійснювались аналізи газу | O49: прізвище | R49: підпис | V49: дата
B50: Інженер І кат. групи газовимірювань та метрології | O50: Юрченко В.М. | V50: =V46 -> 02.06.2017 р.
D51: Метрологічна служба, яка визначає обсяги газу | O51: прізвище | R51: підпис | V51: дата

Sheet додаток
A2: Додаток до Паспорту фізико-хімічних показників природного газу №602
A4: Область | B4: ГРС, прямий споживач | C4: Cередньозважене значення вищої теплоти згоряння
C5: МДж/м³ | D5: ккал/м³ | E5: кВт*год./м³
A6: Луганська область | B6: ГРС с.Попівка | C6: 38.70494683 | D6: 9244.517859 | E6: 10.75137412
B7: ГРС с. Коноплянівка | C7: 38.70514695 | D7: 9244.565658 | E7: 10.75142971
B8: ГРС м. Сватове | C8: 38.7052629 | D8: 9244.593352 | E8: 10.75146192
B9: ГРС с.Коломийчиха | C9: 38.70467497 | D9: 9244.452928 | E9: 10.7512986
A10: Середньозважене значення вищої теплоти згоряння по маршруту № 602 | C10: 38.70521106 | D10: 9244.580971 | E10: 10.75144752
A13: Головний інженер Первомайського ЛВУМГ | C13: Журавель І.В. | E13: 02.06.2017 р.
A14: Керівник підрозділу підприємства, якому підпорядкована лабораторія | C14: прізвище | D14: підпис | E14: дата
A15: Начальник лабораторії ПМ КС Борова Первомайського ЛВ УМГ | C15: Карапута В.М. | E15: =E13 -> 02.06.2017 р.
A16: Лабораторія, де здійснювались аналізи газу | C16: прізвище | D16: підпис | E16: дата
A17: Інженер І кат. групи газовимірювань та метрології | C17: Юрченко В.М. | E17: =E13 -> 02.06.2017 р.
A18: Метрологічна служба, яка визначає обсяги газу | C18: прізвище | D18: підпис | E18: дата

Sheet variablesList (hidden)
A1: 3 | B1: x:\gaysin | C1: 10, 11, 24, 25, 127, 128, 132, 180, 207, 215 | D1: x:\
B2: x:\Illinci
B3: x:\Talne
